Workbook

Sheet Лист1
B2: № помещения | C2: Температура помещения | D2: Расчетные теплопотери, Вт | E2: Приведенные теплопотери, Вт | F2: Температура подачи | G2: Температура обратки | H2: Средняя температура | I2: Тепловой напор | J2: Для расчета (тср/т.п)1+п | K2: n | L2: Расход теплоноситея, кг/ч | M2: Для расчета 2 (Расход необх/360)р | N2: р | O2: в | P2: Коэфф учета направления потока | Q2: С | R2: Необходимая тепловая мощность, Вт | S2: Кол-во отоп приборов, шт | T2: Необходимая мощность 1 прибора, Вт | U2: Нормированный тепловой напор | V2: Коэфф пересчета | W2: Мощность 1 прибора, Вт расчетный | X2: Мощность 1 прибора, Вт (каталог) ближайший | Y2: Габарит установки | AA2: Характеристики и тип прибора (каталог) | AF2: Фактичекая тепловая мощность, Вт | AG2: Погрешность на мощность приборов, % | AH2: Разница мощности, Вт | AI2: Расход теплоносителя через 1 прибор, кг/ч | AJ2: Расход теплоносителя через 1 прибор, кг/ч | AK2: Расход теплоносителя через через группу, кг/ч | AL2: Расход теплоносителя через группу, кг/ч
Y4: Высота | Z4: Длина | AA4: секц | AB4: Кол-во секц | AC4: Кол-во секц | AD4: Длина секции | AE4: длина радиатора
B5: 1 | C5: 2 | D5: 3 | E5: 4 | F5: 5 | G5: 6 | H5: 7 | I5: 8 | J5: 9 | K5: 10 | L5: 11 | M5: 12 | N5: 13 | O5: 14 | P5: 15 | Q5: 16 | R5: 17 | S5: 18 | T5: 19 | U5: 20 | V5: 21 | W5: 22 | X5: 23 | Y5: 24 | Z5: 25 | AA5: 26 | AB5: 27 | AC5: 28 | AD5: 29 | AE5: ширина | AF5: 31 | AG5: 32 | AH5: 33 | AI5: 34 | AJ5: 35 | AK5: 36 | AL5: 37
B7: 2 | C7: 20 | D7: =[1]Лист2!S19+[1]Лист2!S7 -> 7168.026242 | E7: =ROUNDUP(D7,-1) -> 7170 | F7: 90 | G7: 70 | H7: =(F7+G7)/2 -> 80 | I7: =H7-C7 -> 60 | J7: =POWER(H7/I7,1+K7) -> 1.45351781 | K7: 0.3 | L7: =0.001*E7/(4.19*(F7-G7))*3600 -> 308.0190931 | M7: =POWER(L7/360,N7) -> 1 | N7: 0 | O7: 0.99 | P7: 1 | Q7: 1 | R7: =E7*J7*O7*M7*P7*Q7 -> 10317.50547 | S7: 5 | T7: =R7/S7 -> 2063.501094 | U7: 70 | V7: =POWER(I7/U7,1.3) -> 0.818406695 | W7: =T7/V7 -> 2521.363898 | X7: 2700 | Y7: 0 | Z7: 0 | AA7: 167 | AB7: =X7/AA7 -> 16.16766467 | AC7: =ROUNDUP(AB7,-0.1) -> 17 | AD7: 80 | AE7: =AD7*AC7 -> 1360 | AF7: =X7*S7 -> 13500 | AG7: =(AF7-R7)/R7*100% -> 0.3084558121 | AH7: =AF7-R7 -> 3182.494529 | AI7: =W7*0.86/20 -> 108.4186476 | AK7: =AI7*S7 -> 542.093238
B10: 2 | C10: 20 | D10: 7168 | E10: =ROUNDUP(D10,-1) -> 7170 | F10: 90 | G10: 70 | H10: =(F10+G10)/2 -> 80 | I10: =H10-C10 -> 60 | J10: =POWER(H10/I10,1+K10) -> 1.45351781 | K10: 0.3 | L10: =0.001*E10/(4.19*(F10-G10))*3600 -> 308.0190931 | M10: =POWER(L10/360,N10) -> 0.9976635997 | N10: 0.015 | O10: 0.99 | P10: 0.94 | Q10: 1 | R10: =E10*J10*O10*M10*P10*Q10 -> 9675.79567 | S10: 5 | T10: =R10/S10 -> 1935.159134 | U10: 70 | V10: =POWER(I10/U10,1.3) -> 0.818406695 | W10: =T10/V10 -> 2364.544603 | X10: 1950 | Y10: 0 | Z10: 0 | AA10: 167 | AB10: =X10/AA10 -> 11.67664671 | AC10: =ROUNDUP(AB10,-0.1) -> 12 | AD10: 80 | AE10: =AD10*AC10 -> 960 | AF10: =X10*S10 -> 9750 | AG10: =(AF10-R10)/R10*100% -> 0.007669067487 | AH10: =AF10-R10 -> 74.20432999 | AI10: =W10*0.86/20 -> 101.6754179 | AK10: =AI10*S10 -> 508.3770897
